bitfinex/quotes_SOLUSD_20240822
["timestamp","ask_amount","ask_price","bid_price","bid_amount"]
[1724340922929,52.24948,142.89,142.8,20.0]
[1724340926059,6.0651,142.9,142.83,32.99]
[1724340927232,13.0631,142.9,142.8,52.99]
[1724340927633,0.25098,142.89,142.8,52.99]
[1724340929136,6.0651,142.9,142.8,52.99]
[1724340929360,6.0651,142.9,142.82,32.99]
[1724340933935,6.0651,142.9,142.83,20.0]
[1724340934252,6.0651,142.9,142.84,34.38975344]
[1724340934452,6.0651,142.9,142.86,32.99]
[1724340934762,6.0651,142.9,142.88,32.99]
[1724340934969,22.6897,142.96,142.88,32.99]
[1724340935271,22.6897,142.96,142.9,32.99]
[1724340935434,22.6897,142.96,142.91,1.39928244]
[1724340935635,22.6897,142.96,142.9,32.99]
[1724340936442,22.6897,142.96,142.92,32.99]
[1724340936866,22.6897,142.96,142.9,32.99]
[1724340937069,22.6897,142.96,142.91,20.0]
[1724340937466,22.6897,142.96,142.9,32.99]
[1724340937668,22.6897,142.96,142.91,20.0]
[1724340940679,22.6897,142.96,142.89,20.0]
[1724340942349,22.6897,142.96,142.86,32.99]
[1724340942558,45.25098,142.95,142.86,32.99]
[1724340942968,0.25098,142.95,142.86,32.99]
[1724340944249,0.25098,142.95,142.87,20.0]
[1724340945576,6.3292,142.94,142.87,20.0]
[1724340945880,0.12549,142.93,142.85,20.0]
[1724340946057,6.3292,142.94,142.85,20.0]
[1724340947060,6.3292,142.94,142.86,32.99]
[1724340947262,6.3292,142.94,142.87,20.0]
[1724340947457,6.3292,142.94,142.88,32.99]
[1724340947660,6.3292,142.94,142.89,20.0]
[1724340950893,6.3292,142.94,142.87,20.0]
[1724340951888,6.3292,142.94,142.88,32.99]
[1724340952193,6.3292,142.94,142.89,20.0]
[1724340952482,6.3292,142.94,142.9,32.99]
[1724340954885,6.3292,142.94,142.89,20.0]
[1724340955285,6.3292,142.94,142.88,32.99]
[1724340955473,6.3292,142.94,142.9,32.99]
[1724340958804,16.1984,142.96,142.87,20.0]
[1724340958805,16.1984,142.96,142.92,32.99]
[1724340959170,6.1541,142.98,142.92,32.99]
[1724340962784,6.1541,142.98,142.91,20.0]
[1724340963579,13.1483,142.98,142.91,20.0]
[1724340963787,13.1483,142.98,142.87,15.1808]
[1724340963788,7.24558,142.97,142.87,48.1708]
[1724340963987,16.3714,142.96,142.87,32.99]
[1724340964294,23.3664,142.96,142.87,32.99]
[1724340964495,6.61248,142.95,142.87,32.99]
[1724340964675,6.61248,142.95,142.85,32.99]
[1724340964872,6.996,142.94,142.85,32.99]
[1724340965401,13.60798,142.95,142.85,32.99]
[1724340966690,45.0,142.94,142.85,32.99]
[1724340967217,45.0,142.94,142.86,20.0]
[1724340968474,0.12549,142.93,142.86,20.0]
[1724340968675,15.0612,142.92,142.86,20.0]
[1724340970083,15.0612,142.92,142.86,27.27388634]
[1724340973181,0.25098,142.9,142.81,32.99]
[1724340973403,0.25098,142.9,142.81,40.26480317]
[1724340973609,6.5589,142.91,142.83,32.99]
[1724340973905,6.5589,142.91,142.85,32.99]
[1724340975074,0.12549,142.9,142.84,20.0]
[1724340975504,0.25098,142.9,142.84,20.0]
[1724340975710,0.25098,142.9,142.83,32.99]
[1724340976009,0.25098,142.9,142.84,20.0]
[1724340976210,0.12549,142.9,142.84,20.0]
[1724340976411,6.5589,142.91,142.84,20.0]
[1724340976580,6.5589,142.91,142.85,32.99]
[1724340979195,6.5589,142.91,142.86,4.08887326]
[1724340979398,7.77827101,142.91,142.86,4.08887326]
[1724340979785,7.77827101,142.91,142.87,4.08887326]
[1724340979990,7.77827101,142.91,142.86,4.08887326]
[1724340980313,7.77827101,142.91,142.87,4.08887326]
[1724340980618,7.77827101,142.91,142.86,4.08887326]
[1724340980821,7.77827101,142.91,142.87,4.08887326]
[1724340981115,7.77827101,142.91,142.86,4.08887326]
[1724340982182,7.77827101,142.91,142.85,32.99]
[1724340982510,7.77827101,142.91,142.86,4.0889165]
[1724340984736,7.77827101,142.91,142.87,4.0889165]
[1724340984927,7.77827101,142.91,142.86,4.0889165]
[1724340985223,7.77827101,142.91,142.84,20.0]
[1724340985224,7.77827101,142.91,142.87,13.18]
[1724340987514,6.5589,142.91,142.87,13.18]
[1724340991927,6.5589,142.91,142.86,13.18]
[1724340993008,6.5589,142.91,142.84,33.18]
[1724340993538,6.5589,142.91,142.82,7.27521662]
[1724340993728,0.25098,142.9,142.82,20.45521662]
[1724340993907,0.25098,142.9,142.82,7.27521662]
[1724340994117,16.314,142.89,142.82,7.27521662]
[1724340994319,0.25098,142.88,142.8,13.18]
[1724340995635,6.5427,142.87,142.8,13.18]
[1724340996417,6.5427,142.87,142.79,7.27640979]
[1724340996823,6.5427,142.87,142.8,20.0]
[1724340998917,6.5427,142.87,142.79,7.27640979]
[1724340999123,15.2172,142.85,142.79,7.27640979]
[1724341001541,15.2172,142.85,142.8,32.98]
[1724341002343,15.2172,142.85,142.79,7.27640979]
[1724341002948,6.4946,142.84,142.79,7.27640979]
[1724341007532,0.12549,142.83,142.73,49.0865]
[1724341007727,0.12549,142.83,142.75,40.2558803]
[1724341008043,1.21912503,142.82,142.77,32.98]
[1724341008827,1.21912503,142.82,142.79,32.98]
[1724341009521,6.4946,142.84,142.79,32.98]
[1724341010254,6.4946,142.84,142.75,15.70112692]
[1724341010449,6.4946,142.84,142.78,32.98]
[1724341011558,6.4946,142.84,142.8,32.98]
[1724341013048,7.83860633,142.88,142.82,32.98]
[1724341014236,7.83860633,142.88,142.84,32.98]
[1724341014436,6.6197,142.88,142.86,32.98]
[1724341015343,6.4355,142.92,142.86,32.98]
[1724341016252,6.4355,142.92,142.87,1.23314816]
[1724341016574,6.4355,142.92,142.86,32.98]
[1724341016879,6.4355,142.92,142.88,32.98]
[1724341017171,6.3435,142.96,142.9,32.98]
[1724341017363,6.3435,142.96,142.92,32.98]
[1724341017561,6.2111,142.99,142.92,32.98]
[1724341017870,6.2111,142.99,142.94,32.98]
[1724341018476,6.2111,142.99,142.95,13.16]
[1724341020460,6.2111,142.99,142.93,32.91]
[1724341021370,6.994,142.98,142.89,32.91]
[1724341021542,0.12549,142.98,142.9,20.0]
[1724341021744,45.25098,142.98,142.9,20.0]
[1724341023250,52.24518,142.98,142.9,20.0]
[1724341023567,52.24518,142.98,142.84,26.4723]
[1724341023568,6.9959,142.95,142.85,32.91]
[1724341023750,28.6063,142.96,142.85,32.91]
[1724341023951,0.25098,142.95,142.87,32.91]
[1724341026251,21.6114,142.96,142.89,32.91]
[1724341027049,21.6114,142.96,142.91,32.91]
[1724341029575,6.2976,142.96,142.93,32.91]
[1724341031279,6.2976,142.96,142.91,32.91]
[1724341033959,6.2976,142.96,142.89,32.91]
[1724341034165,6.2976,142.96,142.9,20.0]
[1724341034484,6.2976,142.96,142.91,32.91]
[1724341037381,6.2976,142.96,142.9,20.0]
[1724341037749,6.2976,142.96,142.89,32.91]
[1724341037950,6.2976,142.96,142.87,32.91]
[1724341038154,15.684,142.95,142.87,32.91]
[1724341039781,15.684,142.95,142.88,20.0]
[1724341040586,1.21899656,142.94,142.9,13.17]
[1724341041390,1.21899656,142.94,142.92,13.17]
[1724341042062,15.684,142.95,142.92,13.17]
[1724341042266,15.684,142.95,142.94,13.17]
[1724341045097,23.0007,143.0,142.94,65.85]
[1724341045263,23.0007,143.0,142.98,13.17]
[1724341046579,23.0007,143.0,142.96,32.9]
[1724341046779,6.4772,143.0,142.98,32.9]
[1724341047990,6.4772,143.0,142.96,32.9]
[1724341050294,6.4772,143.0,142.94,32.9]
[1724341050501,6.4772,143.0,142.92,32.9]
[1724341051675,6.4772,143.0,142.93,20.0]
[1724341052999,15.8883,142.99,142.9,32.9]
[1724341053704,15.8883,142.99,142.92,32.9]
[1724341054000,15.8883,142.99,142.94,32.9]
[1724341054405,15.8883,142.99,142.92,32.9]
[1724341055189,15.8883,142.99,142.94,32.9]
[1724341055698,15.8883,142.99,142.95,1.13899267]
[1724341058894,15.8883,142.99,142.96,32.9]
[1724341059705,15.8883,142.99,142.94,32.9]
[1724341060777,15.8883,142.99,142.96,32.9]
[1724341061397,6.4772,143.0,142.96,32.9]
[1724341062988,6.4772,143.0,142.94,32.9]
[1724341065784,6.4772,143.0,142.92,32.9]
[1724341066099,6.4772,143.0,142.94,32.9]
[1724341067598,7.69566423,143.0,142.94,32.9]
[1724341068513,7.69566423,143.0,142.94,13.16]
[1724341068714,15.7006,142.98,142.92,13.16]
[1724341069217,15.7006,142.98,142.91,13.16]
[1724341070006,15.7006,142.98,142.92,20.0]
[1724341070394,15.7006,142.98,142.91,13.16]
[1724341070823,15.7006,142.98,142.9,7.26001369]
[1724341071039,7.24578,142.97,142.9,7.26001369]
[1724341071222,7.24578,142.97,142.89,13.16]
[1724341072332,7.24578,142.97,142.89,17.24343919]
[1724341072499,0.25098,142.97,142.89,17.24343919]
[1724341073328,7.24548,142.97,142.89,17.24343919]
[1724341073497,6.2828,142.96,142.89,17.24343919]
[1724341073835,6.2828,142.96,142.91,13.16]
[1724341077414,6.2828,142.96,142.93,13.16]
[1724341078431,6.2828,142.96,142.88,7.26054474]
[1724341078432,6.2828,142.96,142.91,13.16]
[1724341082912,6.2828,142.96,142.9,0.261832]
[1724341084011,6.9955,142.95,142.9,0.261832]
[1724341084232,15.2425,142.94,142.9,0.261832]
[1724341084510,0.25098,142.93,142.9,0.261832]
[1724341084941,22.2385,142.94,142.9,0.261832]
[1724341085136,15.2425,142.94,142.9,0.261832]
[1724341086723,22.2385,142.94,142.9,0.261832]
[1724341087615,6.9965,142.93,142.9,0.261832]
[1724341087819,6.997,142.92,142.9,0.261832]
[1724341088023,51.997,142.92,142.9,0.261832]
[1724341088226,6.9974,142.91,142.9,0.261832]
[1724341088427,52.24838,142.91,142.9,0.261832]
[1724341088736,87.85698,142.91,142.9,0.261832]
[1724341089120,67.69958,142.91,142.9,0.261832]
[1724341089638,74.69698,142.91,142.9,0.261832]
[1724341090414,67.69958,142.91,142.9,0.261832]
[1724341093542,22.69958,142.91,142.9,0.261832]
[1724341093822,22.4486,142.91,142.9,0.261832]
[1724341096921,1.21903688,142.93,142.9,0.261832]
[1724341097128,6.3048,142.94,142.9,0.261832]
[1724341101547,13.3008,142.94,142.9,0.261832]
[1724341101759,0.25098,142.93,142.9,0.261832]
[1724341102654,52.24758,142.93,142.9,0.261832]
[1724341103148,6.9972,142.92,142.9,0.261832]
[1724341103969,7.12289,142.91,142.9,0.261832]
[1724341104253,52.24838,142.91,142.9,0.261832]
[1724341104855,45.25098,142.91,142.9,0.261832]
[1724341106043,45.25098,142.91,142.9,0.261832]
[1724341106953,52.24838,142.91,142.9,0.261832]
[1724341108757,85.20838,142.91,142.9,0.261832]
[1724341109128,126.78798,142.91,142.9,0.261832]
[1724341113940,107.01798,142.91,142.9,0.261832]
[1724341115861,93.82798,142.91,142.9,0.261832]
[1724341116229,72.24838,142.91,142.9,0.261832]
[1724341117441,85.43838,142.91,142.9,0.261832]
[1724341117634,86.65477309,142.91,142.9,0.261832]
[1724341117865,73.46477309,142.91,142.9,0.261832]
[1724341118159,13.19,142.93,142.9,0.261832]
[1724341118160,6.9969,142.92,142.9,0.261832]
[1724341119058,1.21543441,142.93,142.9,0.261832]
[1724341119260,6.9955,142.95,142.9,0.261832]
[1724341119461,8.21013445,142.95,142.9,0.261832]
[1724341119668,6.9959,142.94,142.9,0.261832]
[1724341120165,8.21013445,142.95,142.9,0.261832]
[1724341121655,0.25098,142.94,142.9,0.261832]
[1724341122762,7.24708,142.94,142.9,0.261832]
[1724341122971,20.43708,142.94,142.9,0.261832]
[1724341123458,13.44098,142.94,142.9,0.261832]
[1724341123666,51.9965,142.93,142.9,0.261832]
[1724341123867,0.25098,142.92,142.9,0.261832]
[1724341124567,20.43798,142.92,142.9,0.261832]
[1724341124861,6.9974,142.91,142.9,0.261832]
[1724341125172,7.24838,142.91,142.9,0.261832]
[1724341125536,52.24838,142.91,142.9,0.261832]
[1724341127556,72.24838,142.91,142.9,0.261832]
[1724341133667,72.24838,142.91,142.8,21.8132]
[1724341133668,7.0,142.86,142.8,21.8132]
[1724341133868,0.25098,142.85,142.8,15.7392]
[1724341135174,7.0,142.86,142.8,15.7392]
[1724341136086,7.12489,142.87,142.8,15.7392]
[1724341136251,45.12549,142.86,142.8,15.7392]
[1724341137178,52.12539,142.86,142.8,15.7392]
[1724341137566,45.12549,142.86,142.8,15.7392]
[1724341137774,0.12549,142.86,142.8,15.7392]
[1724341139696,1.21359887,142.85,142.8,15.7392]
[1724341140056,7.12489,142.87,142.8,15.7392]
[1724341140265,8.21208717,142.89,142.81,13.19]
[1724341140785,0.12549,142.88,142.81,13.19]
[1724341140969,7.12449,142.88,142.81,13.19]
[1724341141879,0.12549,142.87,142.81,13.19]
[1724341142459,0.12549,142.87,142.8,15.7392]
[1724341143482,7.12489,142.87,142.8,15.7392]
[1724341143678,0.12549,142.86,142.8,15.7392]
[1724341144073,0.12549,142.86,142.8,19.83000309]
[1724341144263,0.12549,142.86,142.8,15.7392]
[1724341144264,7.12539,142.86,142.8,15.7392]
[1724341144690,45.12549,142.85,142.8,15.7392]
[1724341144888,52.12619,142.85,142.8,15.7392]
[1724341145090,0.12549,142.84,142.8,15.7392]
[1724341147781,45.12549,142.85,142.8,15.7392]
[1724341149464,45.12549,142.85,142.78,4.09121602]
[1724341149669,45.12549,142.85,142.77,37.28121602]
[1724341149970,45.12549,142.85,142.78,4.09121602]
[1724341150495,45.12549,142.85,142.79,13.19]
[1724341150790,0.12549,142.85,142.79,13.19]
[1724341151098,0.25098,142.85,142.79,13.19]
[1724341152285,0.25098,142.85,142.78,4.09126118]
[1724341152504,7.25138,142.85,142.78,4.09126118]
[1724341152806,7.25138,142.85,142.76,35.3925]
[1724341153191,7.25138,142.85,142.76,28.7372]
[1724341153381,7.0009,142.84,142.76,28.7372]
[1724341153577,0.25098,142.83,142.76,28.7372]
[1724341154174,20.1905,142.85,142.76,28.7372]
[1724341154374,45.25098,142.84,142.76,28.7372]
[1724341159120,6.1567,142.88,142.8,13.19]
[1724341159276,26.9994,142.87,142.8,13.19]
[1724341159481,33.19,142.87,142.78,13.19]
[1724341160480,46.46472038,142.86,142.78,13.19]
[1724341160681,8.46472038,142.86,142.78,13.19]
[1724341161194,1.21374038,142.86,142.78,13.19]
[1724341162901,6.1567,142.88,142.82,13.19]
[1724341163105,6.1567,142.88,142.76,42.8129492]
[1724341163282,6.1567,142.88,142.8,13.19]
[1724341163484,6.9995,142.87,142.8,13.19]
[1724341164081,0.25098,142.86,142.8,13.19]
[1724341165826,45.25098,142.87,142.8,13.19]
[1724341166810,0.25098,142.87,142.8,13.19]
[1724341166982,6.1567,142.88,142.8,13.19]
[1724341168208,45.0,142.87,142.8,13.19]
[1724341168388,0.25098,142.86,142.8,13.19]
[1724341169193,45.0,142.87,142.8,13.19]
[1724341169514,6.1567,142.88,142.8,13.19]
[1724341171214,26.3458,142.88,142.8,13.19]
[1724341172388,6.9993,142.87,142.8,13.19]
[1724341172588,0.25098,142.86,142.8,13.19]
[1724341172814,0.25098,142.86,142.77,7.26585328]
[1724341173110,0.25098,142.86,142.79,13.19]
[1724341174120,45.25098,142.87,142.79,13.19]
[1724341175713,52.25068,142.87,142.79,13.19]
[1724341176523,45.25098,142.87,142.79,13.19]
[1724341177315,52.25048,142.87,142.79,13.19]
[1724341177819,6.9998,142.86,142.78,13.19]
[1724341178000,0.25098,142.85,142.77,7.26585328]
[1724341178204,0.25098,142.85,142.77,13.19]
[1724341178822,7.25138,142.85,142.77,13.19]
[1724341180326,0.25098,142.85,142.77,13.19]
[1724341180829,0.25098,142.85,142.79,13.19]
[1724341180997,0.25098,142.86,142.79,13.19]
[1724341182529,7.0006,142.85,142.79,13.19]
[1724341183504,1.21165738,142.84,142.79,13.19]
[1724341184601,8.21255738,142.84,142.76,15.5472]
[1724341184808,6.578,142.83,142.76,13.19]
[1724341186321,6.578,142.83,142.78,13.19]
[1724341195129,6.578,142.83,142.75,7.30879625]
[1724341195337,6.578,142.83,142.77,13.19]
[1724341197267,6.578,142.83,142.79,13.19]
[1724341198134,6.578,142.83,142.77,13.19]
[1724341200460,6.578,142.83,142.79,13.19]
[1724341201170,6.578,142.83,142.75,7.32045084]
[1724341201465,6.578,142.83,142.77,13.19]
[1724341202165,6.578,142.83,142.79,13.19]
[1724341202488,7.12539,142.86,142.79,13.19]
[1724341202646,0.12549,142.85,142.79,13.19]
[1724341203349,7.12589,142.85,142.77,13.19]
[1724341203653,7.12589,142.85,142.75,7.32045084]
[1724341203654,13.19,142.78,142.75,7.32045084]
[1724341203853,13.19,142.78,142.65,16.2647]
[1724341204150,65.25098,142.77,142.68,13.19]
[1724341204368,7.0057,142.75,142.68,13.19]
[1724341204553,7.25668,142.74,142.68,13.19]
[1724341205176,6.5124,142.73,142.68,13.19]
[1724341205371,7.25808,142.72,142.66,7.32441972]
[1724341205692,7.0072,142.71,142.66,7.32441972]
[1724341205991,0.12549,142.71,142.66,7.32441972]
[1724341206151,7.13229,142.72,142.66,7.32441972]
[1724341206352,0.12549,142.71,142.66,7.32441972]
[1724341206552,45.12549,142.71,142.66,7.32441972]
[1724341206752,45.12549,142.71,142.66,14.33391972]
[1724341206753,0.25098,142.71,142.66,14.33391972]
[1724341207051,0.12549,142.71,142.66,14.33391972]
[1724341207265,13.5186,142.73,142.67,7.009]
[1724341207475,65.25098,142.72,142.67,7.009]
[1724341207672,20.25098,142.72,142.67,7.009]
[1724341207869,20.25098,142.72,142.67,20.199]
[1724341208187,20.0,142.72,142.67,20.199]
[1724341209057,6.5124,142.73,142.67,13.19]
[1724341209842,17.5072,142.8,142.69,13.19]
[1724341209843,6.4866,142.78,142.69,13.19]
[1724341210268,6.4866,142.78,142.7,2.24960678]
[1724341210484,7.0043,142.77,142.71,7.0071]
[1724341211356,7.0048,142.76,142.7,0.8483161]
[1724341211891,13.4908,142.78,142.7,0.8483161]
[1724341212074,13.4905,142.78,142.7,0.8483161]
[1724341212260,27.0043,142.77,142.7,0.8483161]
[1724341212763,7.0048,142.76,142.7,0.8483161]
[1724341212967,40.1943,142.77,142.7,0.8483161]
[1724341213288,7.0048,142.76,142.7,0.8483161]
[1724341213996,0.25098,142.75,142.7,0.8483161]
[1724341214479,40.1943,142.77,142.7,0.8483161]
[1724341214695,1.208715,142.75,142.7,0.8483161]
[1724341214991,33.19,142.77,142.72,13.19]
[1724341214992,20.0,142.77,142.72,13.19]
[1724341215554,1.208574,142.78,142.72,13.19]
[1724341215868,19.2014,142.82,142.73,1.40097631]
[1724341216061,1.20839699,142.81,142.73,1.40097631]
[1724341216568,1.20839699,142.81,142.74,51.06485388]
[1724341216782,1.20839699,142.81,142.74,49.6639]
[1724341217291,1.20839699,142.81,142.74,16.6539]
[1724341218668,21.20839699,142.81,142.74,16.6539]
[1724341219158,28.21069699,142.81,142.74,16.6539]
[1724341219362,7.003,142.8,142.74,16.6539]
[1724341219601,0.25098,142.79,142.74,16.6539]
[1724341219898,0.12549,142.79,142.74,16.6539]
[1724341220098,0.25098,142.8,142.74,16.6539]
[1724341220610,45.25098,142.8,142.74,16.6539]
[1724341220899,7.0038,142.78,142.7,17.1459161]
[1724341221684,40.0133,142.79,142.7,17.1459161]
[1724341221882,45.25098,142.8,142.7,50.1559161]
[1724341222098,45.25098,142.8,142.72,33.01]
[1724341222885,52.25378,142.8,142.72,33.01]
[1724341223905,45.25098,142.8,142.7,50.1559161]
[1724341224067,20.0,142.79,142.7,17.1459161]
[1724341224267,45.25098,142.78,142.7,50.1559161]
[1724341224471,0.25098,142.78,142.7,50.1559161]
[1724341224695,27.0031,142.8,142.7,50.1559161]
[1724341224902,7.0038,142.78,142.7,50.1559161]
[1724341225112,0.25098,142.77,142.7,50.1559161]
[1724341225418,20.0,142.8,142.7,50.1559161]
[1724341225419,7.0033,142.79,142.7,50.1559161]
[1724341225712,0.25098,142.78,142.7,50.1559161]
[1724341225913,7.0033,142.79,142.7,50.1559161]
[1724341227511,20.0,142.8,142.74,33.01]
[1724341227825,1.20839699,142.81,142.74,33.01]
[1724341229511,21.20839699,142.81,142.74,33.01]
[1724341230595,21.20839699,142.81,142.76,33.01]
[1724341230795,13.322,142.85,142.76,33.01]
[1724341231026,14.51875681,142.85,142.76,33.01]
[1724341231324,7.0008,142.84,142.76,33.01]
[1724341231697,14.51885681,142.85,142.76,33.01]
[1724341231903,1.19675681,142.85,142.76,33.01]
[1724341232213,1.19675681,142.85,142.78,33.01]
[1724341233125,1.19675681,142.85,142.75,36.0183]
[1724341233126,1.19675681,142.85,142.8,33.01]
[1724341234631,1.19675681,142.85,142.81,16.5431]
[1724341236512,1.19675681,142.85,142.82,34.41016936]
[1724341236735,15.5828,142.9,142.83,1.39923328]
[1724341236912,16.77801911,142.9,142.82,33.01]
[1724341237113,23.77601911,142.9,142.82,33.01]
[1724341237324,6.9985,142.89,142.82,33.01]
[1724341237629,6.9989,142.88,142.81,16.5431]
[1724341238419,7.12399,142.89,142.81,16.5431]
[1724341240518,0.12549,142.89,142.81,16.5431]
[1724341240843,27.24938,142.89,142.81,16.5431]
[1724341241042,6.9989,142.88,142.81,16.5431]
[1724341241838,7.0002,142.86,142.78,49.2438]
[1724341242337,13.036,142.86,142.78,49.2438]
[1724341242641,6.0358,142.86,142.78,49.2438]
[1724341243418,0.25098,142.85,142.78,49.2438]
[1724341249017,7.25138,142.85,142.78,49.2438]
[1724341249243,7.0008,142.84,142.76,33.01]
[1724341250945,7.25138,142.85,142.78,33.01]
[1724341253724,7.0008,142.84,142.76,33.01]
[1724341255234,7.25138,142.85,142.76,33.01]
[1724341255946,7.25138,142.85,142.78,33.01]
[1724341256155,6.0358,142.86,142.78,33.01]
[1724341256452,20.0,142.85,142.78,33.01]
[1724341257255,21.17542672,142.85,142.78,33.01]
[1724341260558,21.17542672,142.85,142.8,33.01]
[1724341260738,20.0,142.85,142.8,33.01]
[1724341266251,42.0702,142.85,142.76,33.01]
[1724341266442,42.0702,142.85,142.78,13.19]
[1724341268266,35.0698,142.85,142.78,13.19]
[1724341268573,35.0698,142.85,142.8,13.19]
[1724341269144,15.0698,142.85,142.8,13.19]
[1724341270971,6.0358,142.86,142.82,13.19]
[1724341271175,1.1665308,142.87,142.84,13.19]
[1724341271380,15.8101,142.88,142.84,13.19]
[1724341272181,6.3566,142.93,142.86,13.19]
[1724341272482,6.3566,142.93,142.89,13.19]
[1724341274579,6.3566,142.93,142.87,32.94]
[1724341276854,13.3531,142.93,142.85,32.94]
[1724341277088,7.12239,142.92,142.85,32.94]
[1724341277268,7.24788,142.92,142.85,32.94]
[1724341277767,6.3566,142.93,142.85,32.94]
[1724341278259,13.3531,142.93,142.85,32.94]
[1724341278959,6.3566,142.93,142.85,32.94]
[1724341279159,6.3566,142.93,142.87,32.94]
[1724341280073,6.3566,142.93,142.89,32.94]
[1724341281331,6.3566,142.93,142.84,35.9766]
[1724341281332,6.3566,142.93,142.87,32.94]
[1724341283564,6.3566,142.93,142.84,35.9766]
[1724341283565,6.3566,142.93,142.89,32.94]
[1724341283763,15.8101,142.94,142.89,32.94]
[1724341284578,1.17403372,142.95,142.89,32.94]
[1724341284976,6.6261,142.96,142.89,32.94]
[1724341286201,13.6211,142.96,142.87,32.94]
[1724341287798,6.6261,142.96,142.87,32.94]
[1724341287998,0.25098,142.95,142.87,32.94]
[1724341288297,6.6261,142.96,142.87,32.94]
[1724341288516,6.6261,142.96,142.9,32.94]
[1724341293528,6.6261,142.96,142.92,32.94]
[1724341295145,17.46869385,142.98,142.92,32.94]
[1724341298331,16.2983,142.98,142.92,32.94]
[1724341299564,16.2983,142.98,142.94,32.94]
[1724341300255,16.2983,142.98,142.92,32.94]
[1724341301336,13.487,143.0,142.96,32.94]
[1724341301337,6.4938,143.0,142.96,32.94]
[1724341304036,6.4938,143.0,142.94,32.94]
[1724341306655,6.4938,143.0,142.92,32.94]
[1724341307034,6.4938,143.0,142.93,20.0]
[1724341309091,0.12549,142.99,142.9,32.94]
[1724341309261,15.8643,142.98,142.91,20.0]
[1724341309871,22.8584,142.98,142.9,32.94]
[1724341310356,13.1461,142.97,142.88,32.94]
[1724341311553,13.1461,142.97,142.89,20.0]
[1724341312889,6.1517,142.97,142.89,20.0]
[1724341313098,6.1517,142.97,142.9,32.94]
[1724341313975,6.1517,142.97,142.92,32.94]
[1724341315683,6.1517,142.97,142.94,32.94]
[1724341316684,6.1517,142.97,142.92,32.94]
[1724341319074,6.1517,142.97,142.94,32.94]
[1724341320794,6.5412,143.01,142.94,32.94]
[1724341322520,6.5412,143.01,142.91,20.0]
[1724341322521,6.5412,143.01,142.96,13.16]
[1724341323005,6.5412,143.01,142.94,13.16]
[1724341323507,6.9931,143.0,142.94,13.16]
[1724341323714,6.9931,143.0,142.92,13.16]
[1724341323886,16.6389,142.99,142.92,13.16]
[1724341324321,23.6324,142.99,142.92,13.16]
[1724341324603,16.6389,142.99,142.9,32.93]
[1724341324783,16.6389,142.99,142.91,20.0]
[1724341324984,6.5546,142.98,142.91,20.0]
[1724341325229,6.9944,142.97,142.89,7.31157724]
[1724341325389,13.5486,142.98,142.89,7.31157724]
[1724341325922,13.5486,142.98,142.9,32.93]
[1724341327791,6.9945,142.97,142.9,32.93]
[1724341328191,13.5486,142.98,142.9,32.93]
[1724341330894,6.5546,142.98,142.9,32.93]
[1724341333325,13.5486,142.98,142.9,32.93]
[1724341334200,15.7315,142.96,142.89,7.31157724]